[Event "*** Titled Tuesday Blitz"]
[Site "Chess.com"]
[Date "2020.10.20"]
[Round "8"]
[White "BigAl"]
[Black "Vanina1989"]
[Result "1-0"]
[WhiteElo "2480"]
[BlackElo "2643"]
[TimeControl "180+1"]
[EndTime "11:36:25 PDT"]
[Termination "BigAl won by resignation"]

1. Nf3 {[%clk 0:03:00.9]} 1... d5 {[%clk 0:02:59.6]} 2. g3 {[%clk 0:03:00.8]}
2... c6 {[%clk 0:02:59.1]} 3. Bg2 {[%clk 0:03:01.7]} 3... Bg4 {[%clk 0:02:59.2]}
4. O-O {[%clk 0:03:02.6]} 4... Nd7 {[%clk 0:02:59.6]} 5. d3 {[%clk 0:03:03.3]}
5... e6 {[%clk 0:03:00.1]} 6. c4 {[%clk 0:03:04]} 6... Bc5 {[%clk 0:02:59.5]} 7.
h3 {[%clk 0:02:50]} 7... Bh5 {[%clk 0:02:56.7]} 8. g4 {[%clk 0:02:43.6]} 8...
Bg6 {[%clk 0:02:56.7]} 9. b4 {[%clk 0:02:43.1]} 9... Bd6 {[%clk 0:02:45.6]} 10.
b5 {[%clk 0:02:35.9]} 10... Ngf6 {[%clk 0:02:42.4]} 11. bxc6 {[%clk 0:02:35.5]}
11... bxc6 {[%clk 0:02:42.1]} 12. Qa4 {[%clk 0:02:29]} 12... O-O {[%clk
0:02:37]} 13. Ba3 {[%clk 0:02:23.3]} 13... Nb6 {[%clk 0:02:27.3]} 14. Qxc6
{[%clk 0:02:16.7]} 14... Bxa3 {[%clk 0:02:20.3]} 15. Nxa3 {[%clk 0:02:16.8]}
15... Qe7 {[%clk 0:02:16.3]} 16. Nb5 {[%clk 0:02:02.7]} 16... dxc4 {[%clk
0:01:34.6]} 17. dxc4 {[%clk 0:02:02]} 17... Rfd8 {[%clk 0:01:24.7]} 18. Rfd1
{[%clk 0:01:38.6]} 18... Be4 {[%clk 0:01:23.8]} 19. Qc7 {[%clk 0:01:35]} 19...
Qxc7 {[%clk 0:01:23.6]} 20. Nxc7 {[%clk 0:01:35]} 20... Nxc4 {[%clk 0:01:23.1]}
21. Nxa8 {[%clk 0:01:33.2]} 21... Rxa8 {[%clk 0:01:20.8]} 22. Nd2 {[%clk
0:01:09.2]} 22... Nxd2 {[%clk 0:01:19.7]} 23. Rxd2 {[%clk 0:01:09]} 23... Bxg2
{[%clk 0:01:16.5]} 24. Kxg2 {[%clk 0:01:09]} 24... h5 {[%clk 0:01:16.3]} 25.
Rad1 {[%clk 0:01:03.6]} 25... Nd5 {[%clk 0:01:14.5]} 26. e4 {[%clk 0:00:53.6]}
26... Nc3 {[%clk 0:01:14.4]} 27. Rd8+ {[%clk 0:00:53.1]} 27... Rxd8 {[%clk
0:01:14.6]} 28. Rxd8+ {[%clk 0:00:54]} 28... Kh7 {[%clk 0:01:14.5]} 29. Rd7
{[%clk 0:00:47.8]} 29... a5 {[%clk 0:01:08.6]} 30. a3 {[%clk 0:00:44.3]} 30...
Nxe4 {[%clk 0:00:55.5]} 31. Ra7 {[%clk 0:00:44]} 31... hxg4 {[%clk 0:00:51.3]}
32. hxg4 {[%clk 0:00:44.2]} 32... Nf6 {[%clk 0:00:46]} 33. f3 {[%clk 0:00:41.5]}
33... Nd5 {[%clk 0:00:45.3]} 34. Rxa5 {[%clk 0:00:41]} 34... Kg6 {[%clk
0:00:45.7]} 35. Rb5 {[%clk 0:00:37.6]} 35... Nc3 {[%clk 0:00:37.3]} 36. Rb3
{[%clk 0:00:34.1]} 36... Na4 {[%clk 0:00:37.5]} 37. Rb4 {[%clk 0:00:31.9]} 37...
Nc5 {[%clk 0:00:37.7]} 38. a4 {[%clk 0:00:31.7]} 38... e5 {[%clk 0:00:37.8]} 39.
a5 {[%clk 0:00:31.3]} 39... f5 {[%clk 0:00:31.2]} 40. a6 {[%clk 0:00:29.9]} 1-0

[Event "*** Titled Tuesday Blitz"]
[Site "Chess.com"]
[Date "2020.10.20"]
[Round "8"]
[White "Chernobay_Artem"]
[Black "Durarbayli"]
[Result "0-1"]
[WhiteElo "2586"]
[BlackElo "2777"]
[TimeControl "180+1"]
[EndTime "11:36:27 PDT"]
[Termination "Durarbayli won by resignation"]

1. d4 {[%clk 0:03:00.8]} 1... Nf6 {[%clk 0:02:59.5]} 2. c4 {[%clk 0:03:01.2]}
2... e6 {[%clk 0:02:59.7]} 3. Nf3 {[%clk 0:03:01.1]} 3... b6 {[%clk 0:03:00.1]}
4. g3 {[%clk 0:03:01.7]} 4... Bb7 {[%clk 0:03:00.6]} 5. Bg2 {[%clk 0:03:01.5]}
5... Bb4+ {[%clk 0:03:01]} 6. Nbd2 {[%clk 0:02:59.9]} 6... O-O {[%clk
0:02:59.4]} 7. O-O {[%clk 0:02:57.3]} 7... c5 {[%clk 0:02:38]} 8. a3 {[%clk
0:02:47.9]} 8... Bxd2 {[%clk 0:02:35.9]} 9. Qxd2 {[%clk 0:02:48]} 9... d5 {[%clk
0:02:29.1]} 10. cxd5 {[%clk 0:02:38.7]} 10... exd5 {[%clk 0:02:25.1]} 11. Qc2
{[%clk 0:02:33.1]} 11... Nbd7 {[%clk 0:02:18.2]} 12. Bf4 {[%clk 0:02:23.1]}
12... Rc8 {[%clk 0:02:11.8]} 13. dxc5 {[%clk 0:02:22.6]} 13... bxc5 {[%clk
0:02:10.9]} 14. Rfd1 {[%clk 0:01:56.8]} 14... Re8 {[%clk 0:02:03.9]} 15. Rac1
{[%clk 0:01:39.5]} 15... h6 {[%clk 0:01:47.1]} 16. Qd3 {[%clk 0:01:23.3]} 16...
Qb6 {[%clk 0:01:44.1]} 17. Rc2 {[%clk 0:01:03.8]} 17... Ba6 {[%clk 0:01:41]} 18.
Qd2 {[%clk 0:01:03.7]} 18... Rxe2 {[%clk 0:01:36.6]} 19. Qc1 {[%clk 0:00:59.2]}
19... Qb3 {[%clk 0:01:14.9]} 20. Rxe2 {[%clk 0:00:54.9]} 20... Bxe2 {[%clk
0:01:15.8]} 21. Re1 {[%clk 0:00:35.8]} 21... Bxf3 {[%clk 0:01:12.7]} 22. Re3
{[%clk 0:00:33.2]} 22... Qd1+ {[%clk 0:01:12]} 23. Qxd1 {[%clk 0:00:33.9]} 23...
Bxd1 {[%clk 0:01:12.5]} 24. b4 {[%clk 0:00:34.2]} 24... c4 {[%clk 0:01:11.9]}
25. Re1 {[%clk 0:00:28.1]} 25... Ba4 {[%clk 0:01:11.4]} 26. Bh3 {[%clk
0:00:25.6]} 26... c3 {[%clk 0:01:09.9]} 27. Bf5 {[%clk 0:00:24.8]} 27... c2
{[%clk 0:01:09.4]} 28. Bd2 {[%clk 0:00:20.6]} 28... g6 {[%clk 0:00:54.9]} 29.
Bd3 {[%clk 0:00:20]} 29... h5 {[%clk 0:00:51.5]} 30. Bc1 {[%clk 0:00:19.2]}
30... Ne4 {[%clk 0:00:49.1]} 31. f3 {[%clk 0:00:18.6]} 31... Nc3 {[%clk
0:00:47.7]} 32. Kf2 {[%clk 0:00:11.7]} 32... Na2 {[%clk 0:00:47]} 33. Rh1 {[%clk
0:00:06.9]} 33... Ne5 {[%clk 0:00:44.8]} 34. Be2 {[%clk 0:00:06.9]} 34... d4
{[%clk 0:00:43.3]} 35. f4 {[%clk 0:00:06.7]} 35... d3 {[%clk 0:00:42.5]} 0-1

[Event "*** Titled Tuesday Blitz"]
[Site "Chess.com"]
[Date "2020.10.20"]
[Round "8"]
[White "C_K_G"]
[Black "MarkkuH"]
[Result "1-0"]
[WhiteElo "2145"]
[BlackElo "2382"]
[TimeControl "180+1"]
[EndTime "11:36:28 PDT"]
[Termination "C_K_G won on time"]

1. e4 {[%clk 0:02:59.6]} 1... c5 {[%clk 0:02:59.4]} 2. Nf3 {[%clk 0:02:59.5]}
2... g6 {[%clk 0:03:00]} 3. c3 {[%clk 0:02:57.8]} 3... Bg7 {[%clk 0:02:58]} 4.
d4 {[%clk 0:02:57]} 4... cxd4 {[%clk 0:02:58.5]} 5. cxd4 {[%clk 0:02:56.2]} 5...
d5 {[%clk 0:02:59.1]} 6. e5 {[%clk 0:02:55.5]} 6... Nc6 {[%clk 0:02:59.3]} 7. a3
{[%clk 0:02:54.2]} 7... Bg4 {[%clk 0:02:58]} 8. Be3 {[%clk 0:02:53.2]} 8... e6
{[%clk 0:02:56.3]} 9. Be2 {[%clk 0:02:51.6]} 9... Nge7 {[%clk 0:02:56]} 10. O-O
{[%clk 0:02:51.1]} 10... O-O {[%clk 0:02:53.6]} 11. h3 {[%clk 0:02:49.3]} 11...
Bxf3 {[%clk 0:02:52.9]} 12. Bxf3 {[%clk 0:02:47.3]} 12... Qb6 {[%clk 0:02:49.3]}
13. Nc3 {[%clk 0:02:27.9]} 13... Qxb2 {[%clk 0:02:14.8]} 14. Na4 {[%clk
0:02:25.4]} 14... Qb5 {[%clk 0:02:12.5]} 15. Rb1 {[%clk 0:02:19.3]} 15... Qa5
{[%clk 0:01:53.5]} 16. Rxb7 {[%clk 0:02:14.1]} 16... Nf5 {[%clk 0:01:53.1]} 17.
Nc5 {[%clk 0:01:47.9]} 17... Qxa3 {[%clk 0:01:45.9]} 18. Qd2 {[%clk 0:01:45.2]}
18... Nxe3 {[%clk 0:01:27]} 19. fxe3 {[%clk 0:01:44.8]} 19... Bh6 {[%clk
0:01:24]} 20. Rb3 {[%clk 0:01:42.5]} 20... Bxe3+ {[%clk 0:01:06.1]} 21. Qxe3
{[%clk 0:01:39]} 21... Qa2 {[%clk 0:01:06.3]} 22. Rfb1 {[%clk 0:01:29.3]} 22...
Ne7 {[%clk 0:00:54.4]} 23. g4 {[%clk 0:01:22.5]} 23... Qa5 {[%clk 0:00:46.1]}
24. Qh6 {[%clk 0:01:17.6]} 24... Kh8 {[%clk 0:00:29.7]} 25. Nd7 {[%clk
0:01:10.5]} 25... Ng8 {[%clk 0:00:29.8]} 26. Qf4 {[%clk 0:01:06.4]} 26... Rfd8
{[%clk 0:00:29.5]} 27. Qxf7 {[%clk 0:01:03.3]} 27... Qd2 {[%clk 0:00:29.5]} 28.
Rd1 {[%clk 0:00:58.2]} 28... Qg5 {[%clk 0:00:26.5]} 29. Rb7 {[%clk 0:00:56.4]}
29... Nh6 {[%clk 0:00:20]} 30. Qxe6 {[%clk 0:00:56]} 30... Qf4 {[%clk
0:00:17.9]} 31. Rf1 {[%clk 0:00:52]} 31... Qg3+ {[%clk 0:00:16.3]} 32. Bg2
{[%clk 0:00:50.8]} 32... Qe3+ {[%clk 0:00:16]} 33. Kh1 {[%clk 0:00:51]} 33...
Qxd4 {[%clk 0:00:15.8]} 34. Qf6+ {[%clk 0:00:50.8]} 34... Kg8 {[%clk 0:00:15.6]}
35. Nc5 {[%clk 0:00:46.8]} 1-0

[Event "*** Titled Tuesday Blitz"]
[Site "Chess.com"]
[Date "2020.10.20"]
[Round "8"]
[White "AsaHoffmann"]
[Black "Deepweb2020"]
[Result "1-0"]
[WhiteElo "2374"]
[BlackElo "2215"]
[TimeControl "180+1"]
[EndTime "11:36:29 PDT"]
[Termination "AsaHoffmann won by resignation"]

1. d4 {[%clk 0:02:57.3]} 1... Nf6 {[%clk 0:02:08.7]} 2. Bg5 {[%clk 0:02:55.8]}
2... d5 {[%clk 0:02:07.6]} 3. Nd2 {[%clk 0:02:55]} 3... c5 {[%clk 0:02:07.3]} 4.
e3 {[%clk 0:02:54.5]} 4... e6 {[%clk 0:02:06.7]} 5. c3 {[%clk 0:02:53]} 5... Be7
{[%clk 0:02:06.2]} 6. f4 {[%clk 0:02:52.5]} 6... Nc6 {[%clk 0:02:05.3]} 7. Bd3
{[%clk 0:02:52]} 7... h6 {[%clk 0:02:04.7]} 8. Bh4 {[%clk 0:02:51.7]} 8... Nd7
{[%clk 0:02:02.6]} 9. Bxe7 {[%clk 0:02:44.7]} 9... Qxe7 {[%clk 0:02:03.5]} 10.
Ngf3 {[%clk 0:02:44.6]} 10... O-O {[%clk 0:02:01.2]} 11. O-O {[%clk 0:02:43]}
11... f6 {[%clk 0:01:58.5]} 12. Nh4 {[%clk 0:02:40.5]} 12... Re8 {[%clk
0:01:47.9]} 13. Qg4 {[%clk 0:02:36.1]} 13... Nf8 {[%clk 0:01:46.3]} 14. Ndf3
{[%clk 0:02:30.1]} 14... e5 {[%clk 0:01:35.1]} 15. Bf5 {[%clk 0:02:26.8]} 15...
e4 {[%clk 0:01:30.6]} 16. Nd2 {[%clk 0:02:25.2]} 16... cxd4 {[%clk 0:01:30]} 17.
cxd4 {[%clk 0:02:24.3]} 17... Bxf5 {[%clk 0:01:20]} 18. Nxf5 {[%clk 0:02:23.1]}
18... Qd7 {[%clk 0:01:16.6]} 19. Nxh6+ {[%clk 0:02:21.6]} 19... Kh7 {[%clk
0:01:16]} 20. Qxd7 {[%clk 0:02:19.6]} 20... Nxd7 {[%clk 0:01:15.6]} 21. Nf5
{[%clk 0:02:19.3]} 21... Re6 {[%clk 0:01:13.5]} 22. a3 {[%clk 0:02:16.6]} 22...
g6 {[%clk 0:01:11.3]} 23. Ng3 {[%clk 0:02:16]} 23... f5 {[%clk 0:01:11.5]} 24.
Rac1 {[%clk 0:02:15.3]} 24... Nf6 {[%clk 0:01:10.3]} 25. h3 {[%clk 0:02:14.4]}
25... Nd7 {[%clk 0:01:07.9]} 26. Nb3 {[%clk 0:02:13.3]} 26... Kg7 {[%clk
0:01:04.2]} 27. Nc5 {[%clk 0:02:12.1]} 27... Nxc5 {[%clk 0:01:03.8]} 28. Rxc5
{[%clk 0:02:11.6]} 28... a5 {[%clk 0:01:00.4]} 29. Rxd5 {[%clk 0:02:10]} 29...
a4 {[%clk 0:00:58.1]} 30. Rc1 {[%clk 0:02:09.4]} 30... Kf6 {[%clk 0:00:57.2]}
31. Rd7 {[%clk 0:02:05.9]} 31... Na5 {[%clk 0:00:57]} 32. d5 {[%clk 0:02:02.2]}
32... Rb6 {[%clk 0:00:56.5]} 33. Rc2 {[%clk 0:01:59.7]} 33... Rb3 {[%clk
0:00:49.3]} 34. Kf2 {[%clk 0:01:58.5]} 34... Ra6 {[%clk 0:00:43]} 35. Ne2 {[%clk
0:01:57.6]} 35... Rab6 {[%clk 0:00:42.1]} 36. Nd4 {[%clk 0:01:50.8]} 36... Rxb2
{[%clk 0:00:38.8]} 37. Rxb2 {[%clk 0:01:49.2]} 37... Rxb2+ {[%clk 0:00:39.4]}
38. Kf1 {[%clk 0:01:48.4]} 38... Nc4 {[%clk 0:00:38.3]} 39. g4 {[%clk
0:01:36.4]} 39... Nxe3+ {[%clk 0:00:37.9]} 40. Kg1 {[%clk 0:01:35]} 40... fxg4
{[%clk 0:00:33.5]} 41. hxg4 {[%clk 0:01:34.5]} 41... Nxg4 {[%clk 0:00:30.9]} 42.
Rd6+ {[%clk 0:01:31.8]} 42... Kf7 {[%clk 0:00:26.6]} 43. Rd7+ {[%clk 0:01:29.1]}
43... Kf6 {[%clk 0:00:24.6]} 44. Rd6+ {[%clk 0:01:28.7]} 44... Kg7 {[%clk
0:00:20.3]} 45. Ne6+ {[%clk 0:01:25.6]} 45... Kh6 {[%clk 0:00:18.4]} 46. Ng5
{[%clk 0:01:22.2]} 46... Kh5 {[%clk 0:00:14.4]} 47. Nxe4 {[%clk 0:01:20.5]}
47... Re2 {[%clk 0:00:10.2]} 48. Ng3+ {[%clk 0:01:19.4]} 1-0

[Event "*** Titled Tuesday Blitz"]
[Site "Chess.com"]
[Date "2020.10.20"]
[Round "8"]
[White "nrvisakh"]
[Black "ViktoriyaTarasova"]
[Result "1-0"]
[WhiteElo "2699"]
[BlackElo "2269"]
[TimeControl "180+1"]
[EndTime "11:36:33 PDT"]
[Termination "nrvisakh won by resignation"]

1. e4 {[%clk 0:03:00.9]} 1... e5 {[%clk 0:02:59.7]} 2. Nf3 {[%clk 0:02:48.9]}
2... Nc6 {[%clk 0:02:59.5]} 3. Nc3 {[%clk 0:02:48.3]} 3... Nf6 {[%clk
0:02:58.8]} 4. Bb5 {[%clk 0:02:38.9]} 4... Bc5 {[%clk 0:02:54.9]} 5. O-O {[%clk
0:02:31.8]} 5... O-O {[%clk 0:02:51.7]} 6. Bxc6 {[%clk 0:02:23.9]} 6... dxc6
{[%clk 0:02:47.1]} 7. Nxe5 {[%clk 0:02:24.8]} 7... Bd4 {[%clk 0:02:47]} 8. Nd3
{[%clk 0:02:22.8]} 8... Bxc3 {[%clk 0:02:46.4]} 9. dxc3 {[%clk 0:02:22.8]} 9...
Nxe4 {[%clk 0:02:47.1]} 10. Re1 {[%clk 0:02:22.9]} 10... Re8 {[%clk 0:02:27.7]}
11. Qf3 {[%clk 0:02:21.5]} 11... Nd6 {[%clk 0:02:24.4]} 12. Bf4 {[%clk
0:02:19.6]} 12... Be6 {[%clk 0:02:19.3]} 13. Qg3 {[%clk 0:01:19.6]} 13... Bf5
{[%clk 0:01:45]} 14. Bxd6 {[%clk 0:01:15.3]} 14... Qxd6 {[%clk 0:01:40.1]} 15.
Qxd6 {[%clk 0:01:12.4]} 15... cxd6 {[%clk 0:01:39.8]} 16. f3 {[%clk 0:01:13.3]}
16... Kf8 {[%clk 0:01:37.5]} 17. Kf2 {[%clk 0:01:13.1]} 17... Rxe1 {[%clk
0:01:37.5]} 18. Rxe1 {[%clk 0:01:13.3]} 18... Re8 {[%clk 0:01:37.9]} 19. Rd1
{[%clk 0:01:13.6]} 19... Ke7 {[%clk 0:01:33.7]} 20. c4 {[%clk 0:01:13.1]} 20...
Rd8 {[%clk 0:01:11]} 21. Rd2 {[%clk 0:01:11.1]} 21... Bxd3 {[%clk 0:01:03.6]}
22. Rxd3 {[%clk 0:01:09.2]} 22... b6 {[%clk 0:00:59.5]} 23. h4 {[%clk
0:01:03.7]} 23... Kd7 {[%clk 0:00:52.8]} 24. a3 {[%clk 0:00:59.6]} 24... Kc7
{[%clk 0:00:52.7]} 25. Rd4 {[%clk 0:00:59.2]} 25... Re8 {[%clk 0:00:52.5]} 26.
Rf4 {[%clk 0:00:58.3]} 26... Re7 {[%clk 0:00:52.7]} 27. h5 {[%clk 0:00:58.5]}
27... h6 {[%clk 0:00:47.1]} 28. Rg4 {[%clk 0:00:57]} 28... f6 {[%clk 0:00:45.2]}
29. Rd4 {[%clk 0:00:55.9]} 29... a5 {[%clk 0:00:42]} 30. Kg3 {[%clk 0:00:55.6]}
30... Re2 {[%clk 0:00:40.7]} 31. Rg4 {[%clk 0:00:55.5]} 31... Re7 {[%clk
0:00:35.2]} 32. Kf4 {[%clk 0:00:55.1]} 32... b5 {[%clk 0:00:31.7]} 33. cxb5
{[%clk 0:00:54.2]} 33... cxb5 {[%clk 0:00:32.2]} 34. Kf5 {[%clk 0:00:54.5]}
34... Kc6 {[%clk 0:00:25.7]} 35. Kg6 {[%clk 0:00:54.3]} 35... Re2 {[%clk
0:00:25.8]} 36. Kxg7 {[%clk 0:00:52.6]} 36... Rxc2 {[%clk 0:00:26.4]} 37. Kxh6
{[%clk 0:00:52.6]} 37... Rxb2 {[%clk 0:00:27]} 38. Kg7 {[%clk 0:00:52.6]} 38...
Rb1 {[%clk 0:00:27.6]} 39. Rh4 {[%clk 0:00:51.8]} 39... b4 {[%clk 0:00:23.9]}
40. axb4 {[%clk 0:00:51.1]} 40... axb4 {[%clk 0:00:24.1]} 41. h6 {[%clk
0:00:50.3]} 41... b3 {[%clk 0:00:18.5]} 42. h7 {[%clk 0:00:49.8]} 1-0

[Event "*** Titled Tuesday Blitz"]
[Site "Chess.com"]
[Date "2020.10.20"]
[Round "8"]
[White "AndrewDGreen"]
[Black "VladaSviridova"]
[Result "1-0"]
[WhiteElo "2401"]
[BlackElo "2252"]
[TimeControl "180+1"]
[EndTime "11:36:34 PDT"]
[Termination "AndrewDGreen won by resignation"]

1. d4 {[%clk 0:03:00.9]} 1... d5 {[%clk 0:02:59.6]} 2. Bf4 {[%clk 0:03:00.2]}
2... Nf6 {[%clk 0:02:58.8]} 3. e3 {[%clk 0:03:00.2]} 3... c5 {[%clk 0:02:58.9]}
4. Nc3 {[%clk 0:03:00.4]} 4... cxd4 {[%clk 0:02:46.2]} 5. exd4 {[%clk
0:03:01.3]} 5... a6 {[%clk 0:02:41.7]} 6. Nf3 {[%clk 0:03:00.9]} 6... Nc6 {[%clk
0:02:41.8]} 7. Ne5 {[%clk 0:03:01.5]} 7... Bf5 {[%clk 0:02:33.5]} 8. g4 {[%clk
0:03:01.2]} 8... Bg6 {[%clk 0:02:26.7]} 9. h4 {[%clk 0:02:58]} 9... Qb6 {[%clk
0:00:54.5]} 10. Nxc6 {[%clk 0:02:45.4]} 10... bxc6 {[%clk 0:00:52.9]} 11. Na4
{[%clk 0:02:33.9]} 11... Qa5+ {[%clk 0:00:48.5]} 12. c3 {[%clk 0:02:34.4]} 12...
h5 {[%clk 0:00:41]} 13. g5 {[%clk 0:02:28.2]} 13... Ne4 {[%clk 0:00:37.1]} 14.
b4 {[%clk 0:02:23.7]} 14... Qd8 {[%clk 0:00:35]} 15. Bd3 {[%clk 0:02:22.4]}
15... e6 {[%clk 0:00:28.7]} 16. f3 {[%clk 0:02:21]} 16... Nd6 {[%clk 0:00:27.1]}
17. Bxg6 {[%clk 0:02:21.1]} 17... fxg6 {[%clk 0:00:27.2]} 18. Qd3 {[%clk
0:02:21.7]} 18... Nf5 {[%clk 0:00:26.4]} 19. Kf2 {[%clk 0:02:14]} 19... Kf7
{[%clk 0:00:26.4]} 20. Rae1 {[%clk 0:02:05.1]} 20... Bd6 {[%clk 0:00:25.7]} 21.
Qd2 {[%clk 0:02:01.1]} 21... Qc7 {[%clk 0:00:24.2]} 22. Be5 {[%clk 0:01:55.5]}
22... Bxe5 {[%clk 0:00:23.3]} 23. Rxe5 {[%clk 0:01:55]} 23... a5 {[%clk
0:00:21.4]} 24. Nc5 {[%clk 0:01:53.6]} 24... Rhe8 {[%clk 0:00:20.6]} 25. a3
{[%clk 0:01:45]} 25... axb4 {[%clk 0:00:20]} 26. axb4 {[%clk 0:01:45.9]} 26...
Re7 {[%clk 0:00:20.1]} 27. Rhe1 {[%clk 0:01:43.3]} 27... Rae8 {[%clk 0:00:20.1]}
28. Qf4 {[%clk 0:01:41.4]} 28... Qd6 {[%clk 0:00:17.2]} 29. Rxf5+ {[%clk
0:01:38.3]} 29... exf5 {[%clk 0:00:17]} 30. Qxd6 {[%clk 0:01:38.9]} 30... Rxe1
{[%clk 0:00:17]} 31. Qd7+ {[%clk 0:01:28.9]} 31... R8e7 {[%clk 0:00:17]} 32.
Qxc6 {[%clk 0:01:27.4]} 32... R7e2+ {[%clk 0:00:17]} 33. Kg3 {[%clk 0:01:27.9]}
33... Rg1+ {[%clk 0:00:15.9]} 34. Kf4 {[%clk 0:01:28.2]} 34... Rh1 {[%clk
0:00:15.5]} 35. Qxd5+ {[%clk 0:01:28.1]} 35... Kf8 {[%clk 0:00:15.1]} 36. Ne6+
{[%clk 0:01:24.7]} 36... Ke7 {[%clk 0:00:14.6]} 37. Qd8+ {[%clk 0:01:16.8]}
37... Kxe6 {[%clk 0:00:12.2]} 38. Qe8+ {[%clk 0:01:17.2]} 38... Kd5 {[%clk
0:00:11.9]} 39. Qxe2 {[%clk 0:01:17.7]} 39... Rxh4+ {[%clk 0:00:12]} 40. Kg3
{[%clk 0:01:18.2]} 40... Rh1 {[%clk 0:00:11.5]} 41. Qe5+ {[%clk 0:01:14.7]}
41... Kc4 {[%clk 0:00:11]} 42. d5 {[%clk 0:01:11.9]} 42... h4+ {[%clk
0:00:10.8]} 43. Kg2 {[%clk 0:01:11.6]} 43... Rd1 {[%clk 0:00:10.6]} 44. d6
{[%clk 0:01:09.4]} 44... h3+ {[%clk 0:00:09.5]} 45. Kxh3 {[%clk 0:01:08.6]}
45... Rd3 {[%clk 0:00:07.9]} 46. Qd4+ {[%clk 0:01:05.3]} 46... Rxd4 {[%clk
0:00:07.9]} 47. cxd4 {[%clk 0:01:06.2]} 47... Kxd4 {[%clk 0:00:08]} 48. d7
{[%clk 0:01:06.4]} 48... Ke3 {[%clk 0:00:08.7]} 49. d8=Q {[%clk 0:01:06.7]}
49... Kxf3 {[%clk 0:00:08.9]} 50. b5 {[%clk 0:01:06.6]} 1-0

[Event "*** Titled Tuesday Blitz"]
[Site "Chess.com"]
[Date "2020.10.20"]
[Round "8"]
[White "boasovietica"]
[Black "SamuelGhimpu2003"]
[Result "0-1"]
[WhiteElo "2392"]
[BlackElo "2574"]
[TimeControl "180+1"]
[EndTime "11:36:37 PDT"]
[Termination "SamuelGhimpu2003 won on time"]

1. e4 {[%clk 0:03:00.9]} 1... e6 {[%clk 0:02:56.2]} 2. b3 {[%clk 0:02:55.6]}
2... d5 {[%clk 0:02:57.1]} 3. Bb2 {[%clk 0:02:55.2]} 3... Nf6 {[%clk 0:02:56.7]}
4. exd5 {[%clk 0:02:52.1]} 4... exd5 {[%clk 0:02:56.4]} 5. d4 {[%clk 0:02:52.6]}
5... Bd6 {[%clk 0:02:52.8]} 6. Bd3 {[%clk 0:02:52.5]} 6... O-O {[%clk
0:02:51.4]} 7. h3 {[%clk 0:02:49.7]} 7... Nc6 {[%clk 0:02:45.8]} 8. a3 {[%clk
0:02:47.4]} 8... Ne4 {[%clk 0:02:40.2]} 9. Nf3 {[%clk 0:02:42]} 9... Bf5 {[%clk
0:02:39.9]} 10. O-O {[%clk 0:02:42.3]} 10... Re8 {[%clk 0:02:40]} 11. Re1 {[%clk
0:02:42.2]} 11... Qf6 {[%clk 0:02:39.4]} 12. c4 {[%clk 0:02:25.2]} 12... Ng5
{[%clk 0:01:53.6]} 13. Rxe8+ {[%clk 0:02:14.5]} 13... Rxe8 {[%clk 0:01:54.5]}
14. Nxg5 {[%clk 0:01:55.4]} 14... Bxd3 {[%clk 0:01:52.5]} 15. Nc3 {[%clk
0:01:45.6]} 15... dxc4 {[%clk 0:01:13.8]} 16. bxc4 {[%clk 0:01:45.4]} 16... Bxc4
{[%clk 0:01:14.5]} 17. Nge4 {[%clk 0:01:28.9]} 17... Qxd4 {[%clk 0:01:07.8]} 18.
Qg4 {[%clk 0:01:09.9]} 18... h5 {[%clk 0:00:40.4]} 19. Qxh5 {[%clk 0:00:45.8]}
19... Rxe4 {[%clk 0:00:38.8]} 20. Nxe4 {[%clk 0:00:46.7]} 20... Qxe4 {[%clk
0:00:31]} 21. Qg5 {[%clk 0:00:38.8]} 21... Ne5 {[%clk 0:00:20.6]} 22. Rd1 {[%clk
0:00:18.7]} 22... f6 {[%clk 0:00:20.1]} 23. Qh5 {[%clk 0:00:14.7]} 23... Be2
{[%clk 0:00:19.9]} 24. Qe8+ {[%clk 0:00:03.1]} 24... Kh7 {[%clk 0:00:20.4]} 25.
Re1 {[%clk 0:00:02]} 25... Qc2 {[%clk 0:00:10]} 0-1

[Event "*** Titled Tuesday Blitz"]
[Site "Chess.com"]
[Date "2020.10.20"]
[Round "8"]
[White "Alexander_Zubov"]
[Black "WIDBIFS"]
[Result "0-1"]
[WhiteElo "2918"]
[BlackElo "2780"]
[TimeControl "180+1"]
[EndTime "11:36:38 PDT"]
[Termination "WIDBIFS won by resignation"]

1. d4 {[%clk 0:03:00.9]} 1... Nf6 {[%clk 0:03:00.1]} 2. c4 {[%clk 0:03:00.4]}
2... g6 {[%clk 0:03:00.5]} 3. Nc3 {[%clk 0:03:00]} 3... Bg7 {[%clk 0:03:01]} 4.
e4 {[%clk 0:02:59.9]} 4... O-O {[%clk 0:03:00.6]} 5. Nf3 {[%clk 0:02:59.2]} 5...
d6 {[%clk 0:03:00.9]} 6. Be2 {[%clk 0:02:59.4]} 6... Bg4 {[%clk 0:03:00.8]} 7.
Be3 {[%clk 0:02:58.5]} 7... Nfd7 {[%clk 0:03:01]} 8. Ng1 {[%clk 0:02:57.8]} 8...
Bxe2 {[%clk 0:03:01.2]} 9. Ngxe2 {[%clk 0:02:57.9]} 9... c5 {[%clk 0:03:01.9]}
10. d5 {[%clk 0:02:57.6]} 10... a6 {[%clk 0:02:59]} 11. a4 {[%clk 0:02:55.5]}
11... Ne5 {[%clk 0:02:53.6]} 12. b3 {[%clk 0:02:54.7]} 12... Qa5 {[%clk
0:02:47.5]} 13. Rc1 {[%clk 0:02:37.1]} 13... b5 {[%clk 0:02:44.1]} 14. axb5
{[%clk 0:02:35.2]} 14... axb5 {[%clk 0:02:44]} 15. cxb5 {[%clk 0:02:35.2]} 15...
Nbd7 {[%clk 0:02:22.7]} 16. O-O {[%clk 0:02:34.7]} 16... Nb6 {[%clk 0:02:21.8]}
17. Qc2 {[%clk 0:02:27.3]} 17... Qb4 {[%clk 0:02:08.1]} 18. Rb1 {[%clk
0:02:24.4]} 18... Ra3 {[%clk 0:01:57.4]} 19. Bd2 {[%clk 0:02:19.1]} 19... Rfa8
{[%clk 0:01:44.4]} 20. Na4 {[%clk 0:01:52.4]} 20... Qxb5 {[%clk 0:01:40.6]} 21.
Bc1 {[%clk 0:01:52]} 21... Rxb3 {[%clk 0:00:42.4]} 22. Nac3 {[%clk 0:01:25.6]}
22... Rxb1 {[%clk 0:00:39.2]} 23. Nxb5 {[%clk 0:01:24.6]} 23... Rxb5 {[%clk
0:00:40.1]} 24. Bd2 {[%clk 0:01:19.1]} 24... Rb2 {[%clk 0:00:32.1]} 25. Qc1
{[%clk 0:01:12.1]} 25... Raa2 {[%clk 0:00:22.3]} 26. Nc3 {[%clk 0:01:11.7]}
26... Nd3 {[%clk 0:00:16.8]} 27. Qd1 {[%clk 0:00:59.6]} 27... Rxd2 {[%clk
0:00:17]} 28. Qf3 {[%clk 0:00:49.2]} 28... Bxc3 {[%clk 0:00:16.5]} 29. h4 {[%clk
0:00:40.8]} 29... Bd4 {[%clk 0:00:14.7]} 30. Kh2 {[%clk 0:00:39]} 30... h5
{[%clk 0:00:13.3]} 31. Rd1 {[%clk 0:00:35.3]} 31... Rxd1 {[%clk 0:00:12.2]} 32.
Qxd1 {[%clk 0:00:35.5]} 32... Nxf2 {[%clk 0:00:13.1]} 33. Qb3 {[%clk 0:00:35.4]}
33... Ng4+ {[%clk 0:00:13.1]} 34. Kh3 {[%clk 0:00:35.7]} 34... Rb2 {[%clk
0:00:09.4]} 35. Qa3 {[%clk 0:00:35.8]} 35... Nc4 {[%clk 0:00:08.7]} 36. Qa8+
{[%clk 0:00:35.1]} 36... Kg7 {[%clk 0:00:09.2]} 37. Qe8 {[%clk 0:00:34.5]} 37...
Rb3+ {[%clk 0:00:09.3]} 38. g3 {[%clk 0:00:32.8]} 38... Rb2 {[%clk 0:00:09.8]}
0-1